fUSD/lending_fUSD_20260228
["ID","MTS","AMOUNT","RATE_DAILY","PERIOD"]
[406873614,1772257842454,-4574.0,0.00027979,2]
[406873615,1772257842464,-413.0,0.00027979,2]
[406873616,1772257842474,-6745.33213091,0.00029277,20]
[406873617,1772257842483,-1000.0,0.00029584,2]
[406873618,1772257842493,-1000.0,0.00029858,2]
[406873619,1772257842502,-1000.0,0.0003,30]
[406873620,1772257842513,-1000.0,0.00030132,2]
[406873621,1772257842521,-1000.0,0.00030406,7]
[406873622,1772257842530,-1000.0,0.0003068,7]
[406873623,1772257842540,-174.7,0.00030821,2]
[406873624,1772257842549,-220.46,0.000309,30]
[406873625,1772257842558,-1000.0,0.00030954,7]
[406873626,1772257842567,-3499.0,0.00030979,2]
[406873627,1772257842576,-618.0,0.00030979,2]
[406873628,1772257842586,-1340.0,0.00030979,2]
[406873629,1772257842595,-1277.0,0.00030979,2]
[406873630,1772257842604,-431.937,0.00030979,2]
[406873631,1772257842613,-379.36,0.00030979,2]
[406873632,1772257842623,-1000.0,0.00031228,7]
[406873633,1772257842632,-668.68,0.00031228,2]
[406873634,1772257842641,-189.09196497,0.00031323,3]
[406873635,1772257842650,-1605.0,0.00031502,7]
[406873636,1772257842660,-4782.3124278,0.00031761,23]
[406873637,1772257842670,-114255.0,0.0003185,20]
[406873638,1772257842679,-5118.00818512,0.00032053,2]
[406873639,1772257842689,-2637.09282009,0.00032746,30]
[406873640,1772257842698,-3668.15350984,0.00032771,2]
[406873641,1772257842708,-114255.0,0.000329,20]
[406873642,1772257842717,-297.62,0.000329,14]
[406873643,1772257842727,-350.25,0.000329,14]
[406873644,1772257842736,-410.63,0.000329,14]
[406873645,1772257842747,-441.82,0.000329,2]
[406873646,1772257842756,-150.0,0.00033222,2]
[406873647,1772257842766,-2116.12446439,0.00033222,2]
[406873648,1772257842775,-150.0,0.00033222,2]
[406873649,1772257842786,-3650.2147962,0.00033222,2]
[406873650,1772257842796,-150.0,0.00033222,2]
[406873651,1772257842806,-41146.14233467,0.00033222,2]
[406873652,1772257842815,-191.20580789,0.00033305,26]
[406873653,1772257842824,-587.97325879,0.00033373,26]
[406873654,1772257842834,-8081.85723865,0.00033923,27]
[406873655,1772257842844,-114255.0,0.0003395,20]
[406873656,1772257842853,-336.36194613,0.000345,6]
[406873657,1772257842863,-5000.0,0.000349,2]
[406873658,1772257842872,-114255.0,0.00035,20]
[406873659,1772257842882,-1000.0,0.00035,30]
[406873660,1772257842891,-200.27094853,0.00035,3]
[406873662,1772257842901,-1336.615,0.00035389,42]
[406873663,1772257842911,-1123.27390842,0.00035864,30]
[406873664,1772257842920,-215.72,0.00036,30]
[406873665,1772257842930,-114255.0,0.0003605,20]
[406873666,1772257842939,-515.0,0.00036073,21]
[406873667,1772257842949,-504.0,0.0003615,30]
[406873668,1772257842958,-832.0,0.0003615,30]
[406873669,1772257842968,-16098.0,0.00036263,5]
[406873670,1772257842978,-2000.0,0.000363,2]
[406873672,1772257842988,-441.82,0.000363,2]
[406873673,1772257842997,-5677.87532782,0.00036332,2]
[406873674,1772257843007,-5118.00818512,0.00036343,2]
[406873675,1772257843016,-5063.72843201,0.00036613,30]
[406873676,1772257843026,-350.25,0.000367,14]
[406873677,1772257843035,-410.63,0.000367,14]
[406873678,1772257843044,-114255.0,0.000371,20]
[406873679,1772257843054,-175.83826269,0.00037925,120]
[406873680,1772257843063,-3710.57,0.00038034,30]
[406873682,1772257843073,-114255.0,0.0003815,20]
[406873683,1772257843082,-297.62,0.000382,14]
[406873684,1772257843092,-3668.15350984,0.00038314,2]
[406873685,1772257843101,-1577.3060327,0.00038354,30]
[406873686,1772257843111,-8766.81260357,0.00038569,30]
[406873687,1772257843121,-5531.0,0.000392,5]
[406873688,1772257843131,-174.7,0.00039584,2]
[406873689,1772257843139,-2976.56470566,0.00039995,30]
[406873690,1772257843149,-1216.36,0.0004,120]
[406873691,1772257843159,-2000.0,0.0004,2]
[406873692,1772257843170,-159.0,0.0004,120]
[406873693,1772257843179,-160.0,0.0004,120]
[406873694,1772257843188,-1000.0,0.0004,30]
[406873695,1772257843198,-441.82,0.000403,30]
[406873696,1772257843208,-5118.00818512,0.00040634,15]
[406873697,1772257843217,-1658.57455806,0.00040845,30]
[406873698,1772257843227,-5697.3371049,0.00041465,30]
[406873699,1772257843238,-350.25,0.000415,14]
[406873700,1772257843247,-410.63,0.000415,14]
[406873701,1772257843257,-201.167663,0.000416,22]
[406873702,1772257843267,-196.36177182,0.00041686,2]
[406873703,1772257843277,-353.09773808,0.00041686,2]
[406873704,1772257843287,-402.22264821,0.00041686,2]
[406873705,1772257843297,-167.21,0.00041838,14]
[406873706,1772257843307,-2782.93,0.00042546,120]
[406873707,1772257843317,-160.0,0.000426,120]
[406873708,1772257843329,-175.96630577,0.0004274,120]
[406873709,1772257843339,-159.0,0.000428,120]
[406873710,1772257843348,-25000.0,0.00042853,15]
[406873711,1772257843358,-25000.0,0.00042861,15]
[406873712,1772257843367,-25000.0,0.0004287,15]
[406873713,1772257843378,-25000.0,0.00042879,15]
[406873714,1772257843387,-25000.0,0.00042888,15]
[406873715,1772257843398,-25000.0,0.00042897,15]
[406873716,1772257843408,-3350.89769703,0.00042897,15]
[406873717,1772257843418,-12127.09159632,0.000429,30]
[406873718,1772257843427,-1040.5,0.00042989,30]
[406873719,1772257843436,-200.0,0.00043068,120]
[406873720,1772257843447,-200.0,0.00043068,120]
[406873721,1772257843456,-154.11,0.00043068,120]
[406873722,1772257843465,-204.002408,0.00043209,120]
[406873723,1772257843475,-9668.22868638,0.00043215,30]
[406873724,1772257843485,-271.73047182,0.00043281,7]
[406873725,1772257843494,-1910.34410685,0.00043336,30]
[406873726,1772257843504,-339.14669952,0.0004349,5]
[406873727,1772257843513,-410.63,0.000436,14]
[406873728,1772257843522,-152.614,0.00043679,68]
[406873729,1772257843531,-150.60955201,0.000437,120]
[406873730,1772257843541,-2000.0,0.000437,2]
[406873731,1772257843550,-315.8671427,0.00043766,2]
[406873732,1772257843560,-20000.0,0.00043836,120]
[406873733,1772257843569,-3668.15350984,0.00043857,28]
[406873734,1772257843579,-4031.4504,0.00043866,30]
[406873735,1772257843588,-1040.5,0.00043893,120]
[406873736,1772257843597,-297.62,0.000439,14]
[406873737,1772257843607,-827.0,0.000445,120]
[406873738,1772257843616,-1040.5,0.00044798,120]
[406873739,1772257843625,-500.0,0.00044798,120]
[406873740,1772257843635,-500.0,0.00044798,120]
[406873741,1772257843644,-500.0,0.00044798,120]
[406873742,1772257843653,-500.0,0.00044798,120]
[406873743,1772257843662,-500.0,0.00044798,120]
[406873744,1772257843673,-505.0,0.00044798,120]
[406873745,1772257843682,-182.62233084,0.000449,120]
[406873746,1772257843692,-5118.00818512,0.00044924,15]
[406873747,1772257843701,-1339.56,0.00045,120]
[406873748,1772257843711,-1000.0,0.00045,30]
[406873749,1772257843720,-160.0,0.000453,120]
[406873750,1772257843730,-159.0,0.000457,120]
[406873751,1772257843739,-1040.5,0.00045702,120]
[406873752,1772257843748,-150.0,0.000458,120]
[406873753,1772257843757,-251.42583852,0.00046051,3]
[406873754,1772257843767,-600.0,0.00046152,120]
[406873755,1772257843776,-175.76937218,0.000462,120]
[406873756,1772257843786,-246.0,0.00046306,30]
[406873757,1772257843795,-246.83675833,0.00046306,26]
[406873758,1772257843805,-151.0,0.00046306,60]
[406873759,1772257843815,-164.94102709,0.00046306,120]
[406873760,1772257843824,-205.80114676,0.00046306,120]
[406873761,1772257843833,-500.0,0.00046306,120]
[406873762,1772257843842,-611.0,0.00046306,120]
[406873763,1772257843851,-282.08239593,0.00046306,60]
[406873764,1772257843860,-5000.0,0.00046306,120]
[406873765,1772257843870,-155.697,0.00046306,2]
[406873766,1772257843880,-6070.71038886,0.00046318,30]
[406873767,1772257843890,-150.0,0.00046367,2]
[406873768,1772257843899,-170.88603555,0.00046454,120]
[406873769,1772257843908,-1040.5,0.00046607,120]
[406873770,1772257843918,-294.02,0.000468,120]
[406873771,1772257843928,-507.31,0.000468,120]
[406873772,1772257843937,-425.42,0.000468,120]
[406873773,1772257843946,-824.848314,0.0004693,2]
[406873774,1772257844102,-1772.591538,0.0004693,2]
[406873775,1772257844112,-5507.95366483,0.00047025,22]
[406873776,1772257844122,-5000.0,0.00047025,22]
[406873777,1772257844131,-515.0,0.00047055,31]
[406873778,1772257844141,-683.35,0.000471,90]
[406873779,1772257844151,-2000.0,0.000474,2]
[406873780,1772257844160,-11099.00413363,0.00047861,30]
[406873781,1772257844170,-845.0,0.00047899,16]
[406873782,1772257844179,-160.0,0.000479,120]
[406873783,1772257844189,-829.0,0.00048,120]
[406873784,1772257844198,-827.0,0.00048,120]
[406873785,1772257844216,-828.0,0.00048,120]
[406873786,1772257844226,-410.63,0.00048,14]
[406873787,1772257844235,-1249.0,0.00048,120]
[406873788,1772257844245,-172.0,0.00048,90]
[406873789,1772257844254,-963.0,0.00048219,16]
[406873790,1772257844263,-350.0,0.00048262,8]
[406873791,1772257844272,-2243.38218112,0.00048317,30]
[406873792,1772257844281,-927.64,0.00048348,120]
[406873793,1772257844291,-500.0,0.00048355,60]
[406873794,1772257844300,-500.0,0.00048355,60]
[406873795,1772257844309,-500.0,0.00048355,60]
[406873796,1772257844319,-297.62,0.000484,14]
[406873797,1772257844330,-159.0,0.000485,120]
[406873798,1772257844339,-174.7,0.00048587,14]
[406873799,1772257844348,-200.0,0.000487,17]
[406873800,1772257844357,-64020.6132535,0.00048727,2]
[406873801,1772257844367,-150.0,0.00048792,14]
[406873802,1772257844376,-150.0,0.00048799,14]
[406873803,1772257844385,-200000.0,0.000488,30]
[406873804,1772257844395,-50000.0,0.000488,35]
[406873805,1772257844404,-50000.0,0.000488,40]
[406873806,1772257844413,-50000.0,0.000488,45]
[406873807,1772257844422,-200.0,0.000488,17]
[406873808,1772257844431,-150.0,0.00048801,14]
[406873809,1772257844440,-200.0,0.000489,17]
[406873810,1772257844450,-500.0,0.00048903,60]
[406873811,1772257844459,-500.0,0.00048903,60]
[406873812,1772257844468,-280.11464,0.0004891,120]
[406873813,1772257844477,-280.11464,0.0004891,120]
[406873814,1772257844487,-280.11464,0.0004891,120]
[406873815,1772257844495,-280.11464,0.0004891,120]
[406873816,1772257844505,-280.11464,0.0004891,120]
[406873817,1772257844514,-150.0,0.00048953,14]
[406873818,1772257844523,-150.0,0.00048973,14]
[406873819,1772257844532,-161.0,0.00048986,31]
[406873820,1772257844541,-140156.87642438,0.0004901,2]
[406873821,1772257844557,-150.0,0.00049015,14]
[406873822,1772257844566,-845.0,0.00049039,31]
[406873823,1772257844576,-150.0,0.00049057,14]
[406873824,1772257844586,-150.0,0.00049064,14]
[406873825,1772257844595,-150.0,0.00049084,14]
[406873826,1772257844605,-153.87,0.000491,120]
[406873827,1772257844614,-150.0,0.00049135,14]
[406873828,1772257844623,-1033.13865863,0.0004917,14]
[406873829,1772257844632,-150.0,0.00049183,14]
[406873830,1772257844641,-150.0,0.00049186,14]
[406873831,1772257844651,-150.0,0.00049191,14]
[406873832,1772257844660,-150.0,0.00049192,14]
[406873833,1772257844669,-150.0,0.00049214,14]
[406873834,1772257844678,-5118.00818512,0.00049215,15]
[406873835,1772257844688,-10000.0,0.00049215,2]
[406873836,1772257844698,-150.0,0.00049246,14]
[406873837,1772257844707,-150.0,0.00049251,14]
[406873838,1772257844716,-150.0,0.00049257,14]
[406873839,1772257844726,-150.0,0.00049295,14]
[406873840,1772257844735,-150.0,0.000493,14]
[406873841,1772257844745,-500.0,0.00049315,120]
[406873842,1772257844756,-500.0,0.00049315,120]
[406873843,1772257844765,-500.0,0.00049315,120]
[406873844,1772257844775,-500.0,0.00049315,120]
[406873845,1772257844786,-500.0,0.00049315,120]
[406873846,1772257844796,-500.0,0.00049315,120]
[406873847,1772257844806,-500.0,0.00049315,120]
[406873848,1772257844816,-500.0,0.00049315,120]
[406873849,1772257844826,-339.2629321,0.00049315,120]
[406873850,1772257844835,-500.0,0.00049315,120]
[406873851,1772257844844,-500.0,0.00049315,120]
[406873852,1772257844854,-500.0,0.00049315,120]
[406873853,1772257844864,-500.0,0.00049315,120]
[406873854,1772257844874,-500.0,0.00049315,120]
[406873855,1772257844884,-547.30657081,0.00049315,120]
[406873856,1772257844893,-177.1806686,0.00049315,120]
[406873857,1772257844902,-500.0,0.00049315,120]
[406873858,1772257844911,-518.530408,0.00049315,120]
[406873859,1772257844921,-500.0,0.00049315,120]
[406873860,1772257844930,-500.0,0.00049315,120]
[406873861,1772257844939,-500.0,0.00049315,120]
[406873862,1772257844948,-511.52512427,0.00049315,120]
[406873863,1772257844957,-161.17940073,0.00049315,120]
[406873864,1772257844967,-500.0,0.00049315,120]
[406873865,1772257844977,-500.0,0.00049315,120]
[406873866,1772257844986,-500.0,0.00049315,120]
[406873867,1772257844995,-500.0,0.00049315,120]
[406873868,1772257845005,-500.0,0.00049315,120]
[406873869,1772257845015,-500.0,0.00049315,120]
[406873870,1772257845024,-500.0,0.00049315,120]
[406873871,1772257845033,-500.0,0.00049315,120]
[406873872,1772257845042,-500.0,0.00049315,120]
[406873873,1772257845051,-529.56573953,0.00049315,120]
[406873874,1772257845061,-163.34127422,0.00049315,120]
[406873875,1772257845071,-177.68060729,0.00049315,120]
[406873876,1772257845080,-500.0,0.00049315,120]
[406873877,1772257845089,-500.0,0.00049315,120]
[406873878,1772257845099,-500.0,0.00049315,120]
[406873879,1772257845109,-500.0,0.00049315,120]
[406873880,1772257845118,-500.0,0.00049315,120]
[406873881,1772257845127,-500.0,0.00049315,120]
[406873882,1772257845137,-500.0,0.00049315,120]
[406873883,1772257845145,-500.0,0.00049315,120]
[406873884,1772257845155,-500.0,0.00049315,120]
[406873885,1772257845164,-500.0,0.00049315,120]
[406873886,1772257845173,-500.0,0.00049315,120]
[406873887,1772257845182,-500.0,0.00049315,120]
[406873888,1772257845192,-500.0,0.00049315,120]
[406873889,1772257845201,-500.0,0.00049315,120]
[406873890,1772257845211,-280.77835717,0.00049315,120]
[406873891,1772257845220,-165.49342811,0.00049315,120]
[406873892,1772257845229,-663.82,0.00049315,120]
[406873893,1772257845239,-663.82,0.00049315,120]
[406873894,1772257845248,-663.82,0.00049315,120]
[406873895,1772257845258,-663.82,0.00049315,120]
[406873896,1772257845267,-663.82,0.00049315,120]
[406873897,1772257845276,-663.82,0.00049315,120]
[406873898,1772257845285,-663.82,0.00049315,120]
[406873899,1772257845295,-663.82,0.00049315,120]
[406873900,1772257845304,-663.82,0.00049315,120]
[406873901,1772257845314,-663.82,0.00049315,120]
[406873902,1772257845323,-663.82,0.00049315,120]
[406873903,1772257845337,-455.95361255,0.00049315,120]
[406873904,1772257845347,-663.82,0.00049315,120]
[406873905,1772257845357,-663.82,0.00049315,120]
[406873906,1772257845367,-663.82,0.00049315,120]
[406873907,1772257845379,-663.82,0.00049315,120]
[406873908,1772257845388,-663.82,0.00049315,120]
[406873909,1772257845398,-663.82,0.00049315,120]
[406873910,1772257845410,-663.82,0.00049315,120]
[406873911,1772257845419,-663.82,0.00049315,120]
[406873912,1772257845429,-663.82,0.00049315,120]
[406873913,1772257845439,-663.82,0.00049315,120]
[406873914,1772257845448,-663.82,0.00049315,120]
[406873915,1772257845457,-663.82,0.00049315,120]
[406873916,1772257845466,-664.04756619,0.00049315,120]
[406873917,1772257845476,-500.0,0.00049315,120]
[406873918,1772257845485,-500.0,0.00049315,120]
[406873919,1772257845494,-535.12679281,0.00049315,120]
[406873920,1772257845503,-152.26297133,0.00049315,120]
[406873921,1772257845512,-234921.834926,0.00049315,120]
[406873922,1772257845522,-569.7040501,0.00049315,120]
[406873923,1772257845531,-1000.0,0.00049315,3]
[406873924,1772257845542,-1000.0,0.00049315,3]
[406873925,1772257845551,-1000.0,0.00049315,3]
[406873926,1772257845560,-1000.0,0.00049315,3]
[406873927,1772257845570,-1000.0,0.00049315,3]
[406873928,1772257845579,-1000.0,0.00049315,3]
[406873929,1772257845589,-1000.0,0.00049315,3]
[406873930,1772257845599,-1000.0,0.00049315,3]
[406873931,1772257845608,-1000.0,0.00049315,3]
[406873932,1772257845617,-1000.0,0.00049315,3]
[406873933,1772257845626,-1000.0,0.00049315,3]
[406873934,1772257845636,-1000.0,0.00049315,3]
[406873935,1772257845645,-1000.0,0.00049315,3]
[406873936,1772257845654,-1000.0,0.00049315,3]
[406873937,1772257845664,-975.97748857,0.00049315,3]
[406873938,1772257845673,-500.0,0.00049315,120]
[406873939,1772257845684,-500.0,0.00049315,120]
[406873940,1772257845694,-500.0,0.00049315,120]
[406873941,1772257845704,-500.0,0.00049315,120]
[406873942,1772257845713,-201.00218735,0.00049315,120]
[406873943,1772257845723,-500.0,0.00049315,120]
[406873944,1772257845733,-500.0,0.00049315,120]
[406873945,1772257845743,-507.20453513,0.00049315,120]
[406873946,1772257845753,-500.0,0.00049315,120]
[406873947,1772257845762,-500.0,0.00049315,120]
[406873948,1772257845772,-500.0,0.00049315,120]
[406873949,1772257845782,-513.20648797,0.00049315,120]
[406873950,1772257845792,-500.0,0.00049315,120]
[406873951,1772257845801,-500.0,0.00049315,120]
[406873952,1772257845811,-500.0,0.00049315,120]
[406873953,1772257845820,-500.0,0.00049315,120]
[406873954,1772257845829,-500.0,0.00049315,120]
[406873956,1772257845838,-576.61952136,0.00049315,120]
[406873958,1772257845857,-500.0,0.00049315,120]
[406873959,1772257845866,-500.0,0.00049315,120]
[406873960,1772257845876,-500.0,0.00049315,120]
[406873961,1772257845885,-500.0,0.00049315,120]
[406873962,1772257845894,-181.54925701,0.00049315,120]
[406873963,1772257845904,-500.0,0.00049315,120]
[406873964,1772257845913,-500.0,0.00049315,120]
[406873965,1772257845923,-500.0,0.00049315,120]
[406873966,1772257845932,-500.0,0.00049315,120]
[406873967,1772257845942,-500.0,0.00049315,120]
[406873968,1772257845951,-500.0,0.00049315,120]
[406873969,1772257845960,-500.0,0.00049315,120]
[406873970,1772257845969,-500.0,0.00049315,120]
[406873971,1772257845979,-500.0,0.00049315,120]
[406873972,1772257845989,-500.0,0.00049315,120]
[406873973,1772257845998,-500.0,0.00049315,120]
[406873974,1772257846008,-500.0,0.00049315,120]
[406873975,1772257846017,-500.0,0.00049315,120]
[406873976,1772257846026,-500.0,0.00049315,120]
[406873977,1772257846036,-500.0,0.00049315,120]
[406873978,1772257846045,-519.89238366,0.00049315,120]
[406873979,1772257846055,-642.91,0.00049315,120]
[406873980,1772257846064,-642.91,0.00049315,120]
[406873981,1772257846072,-642.91,0.00049315,120]
[406873982,1772257846081,-642.91,0.00049315,120]
[406873983,1772257846090,-642.91,0.00049315,120]
[406873984,1772257846099,-642.91,0.00049315,120]
[406873985,1772257846108,-642.91,0.00049315,120]
[406873986,1772257846117,-642.91,0.00049315,120]
[406873987,1772257846127,-642.91,0.00049315,120]
[406873988,1772257846136,-642.91,0.00049315,120]
[406873989,1772257846145,-642.91,0.00049315,120]
[406873990,1772257846154,-642.91,0.00049315,120]
[406873991,1772257846163,-642.91,0.00049315,120]
[406873992,1772257846172,-642.91,0.00049315,120]
[406873993,1772257846181,-642.91,0.00049315,120]
[406873994,1772257846194,-642.91,0.00049315,120]
[406873995,1772257846207,-642.91,0.00049315,120]
[406873996,1772257846216,-642.91,0.00049315,120]
[406873997,1772257846227,-642.91,0.00049315,120]
[406873998,1772257846236,-642.91,0.00049315,120]
[406873999,1772257846246,-642.91,0.00049315,120]
[406874000,1772257846256,-642.91,0.00049315,120]
[406874001,1772257846264,-642.91,0.00049315,120]
[406874002,1772257846274,-642.98693719,0.00049315,120]
[406874003,1772257846283,-500.0,0.00049315,120]
[406874004,1772257846292,-500.0,0.00049315,120]
[406874005,1772257846301,-500.0,0.00049315,120]
[406874006,1772257846312,-500.0,0.00049315,120]
[406874007,1772257846321,-500.0,0.00049315,120]
[406874008,1772257846333,-500.0,0.00049315,120]
[406874009,1772257846342,-500.0,0.00049315,120]
[406874010,1772257846351,-500.0,0.00049315,120]
[406874011,1772257846360,-500.0,0.00049315,120]
[406874012,1772257846370,-507.95038961,0.00049315,120]
[406874013,1772257846379,-544.65,0.00049315,120]
[406874014,1772257846388,-544.65,0.00049315,120]
[406874015,1772257846398,-544.65,0.00049315,120]
[406874016,1772257846409,-544.65,0.00049315,120]
[406874017,1772257846419,-544.65,0.00049315,120]
[406874018,1772257846428,-544.65,0.00049315,120]
[406874019,1772257846438,-544.65,0.00049315,120]
[406874020,1772257846451,-544.65,0.00049315,120]
[406874021,1772257846460,-544.65,0.00049315,120]
[406874022,1772257846470,-544.65,0.00049315,120]
[406874023,1772257846480,-544.65,0.00049315,120]
[406874024,1772257846489,-544.65,0.00049315,120]
[406874025,1772257846499,-544.65,0.00049315,120]
[406874026,1772257846511,-544.65,0.00049315,120]
[406874027,1772257846520,-544.65,0.00049315,120]
[406874028,1772257846530,-544.65,0.00049315,120]
[406874029,1772257846539,-544.65,0.00049315,120]
[406874030,1772257846548,-544.65,0.00049315,120]
[406874031,1772257846558,-544.65,0.00049315,120]
[406874032,1772257846567,-573.43625958,0.00049315,120]
[406874033,1772257846576,-544.65,0.00049315,120]
[406874034,1772257846585,-544.65,0.00049315,120]
[406874035,1772257846594,-544.65,0.00049315,120]
[406874036,1772257846603,-544.65,0.00049315,120]
[406874037,1772257846613,-544.86202779,0.00049315,120]
[406874038,1772257846623,-500.0,0.00049315,120]
[406874039,1772257846632,-500.0,0.00049315,120]
[406874040,1772257846642,-500.0,0.00049315,120]
[406874041,1772257846651,-500.0,0.00049315,120]
[406874042,1772257846660,-500.0,0.00049315,120]
[406874043,1772257846669,-500.0,0.00049315,120]
[406874044,1772257846678,-617.42398136,0.00049315,120]
[406874045,1772257846687,-500.0,0.00049315,120]
[406874046,1772257846699,-500.0,0.00049315,120]
[406874047,1772257846708,-500.0,0.00049315,120]
[406874049,1772257846717,-500.0,0.00049315,120]
[406874051,1772257846726,-500.0,0.00049315,120]
[406874053,1772257846736,-500.0,0.00049315,120]
[406874054,1772257846745,-500.0,0.00049315,120]
[406874056,1772257846755,-500.0,0.00049315,120]
[406874058,1772257846764,-500.0,0.00049315,120]
[406874060,1772257846774,-500.0,0.00049315,120]
[406874063,1772257846784,-500.0,0.00049315,120]
[406874064,1772257846793,-500.0,0.00049315,120]
[406874066,1772257846803,-500.0,0.00049315,120]
[406874069,1772257846812,-500.0,0.00049315,120]
[406874070,1772257846821,-500.0,0.00049315,120]
[406874072,1772257846830,-500.0,0.00049315,120]
[406874075,1772257846841,-500.0,0.00049315,120]
[406874076,1772257846850,-500.0,0.00049315,120]
[406874079,1772257846859,-500.0,0.00049315,120]
[406874080,1772257846868,-555.77,0.00049315,120]
[406874082,1772257846877,-500.0,0.00049315,120]
[406874084,1772257846887,-500.0,0.00049315,120]
[406874086,1772257846896,-500.0,0.00049315,120]
[406874088,1772257846905,-500.0,0.00049315,120]
[406874090,1772257846914,-500.0,0.00049315,120]
[406874091,1772257846923,-500.0,0.00049315,120]
[406874092,1772257846933,-500.0,0.00049315,120]
[406874093,1772257846944,-500.0,0.00049315,120]
[406874094,1772257846953,-500.0,0.00049315,120]
[406874095,1772257846962,-459.19709983,0.00049315,120]
[406874096,1772257846971,-500.0,0.00049315,120]
[406874097,1772257846980,-500.0,0.00049315,120]
[406874098,1772257846990,-500.0,0.00049315,120]
[406874099,1772257846999,-500.0,0.00049315,120]
[406874100,1772257847009,-500.0,0.00049315,120]
[406874101,1772257847018,-500.0,0.00049315,120]
[406874102,1772257847027,-500.0,0.00049315,120]
[406874103,1772257847037,-500.0,0.00049315,120]
[406874104,1772257847045,-510.92800427,0.00049315,120]
[406874105,1772257847054,-500.0,0.00049315,120]
[406874106,1772257847064,-316.435581,0.00049315,120]
[406874107,1772257847073,-500.0,0.00049315,120]
[406874108,1772257847082,-500.0,0.00049315,120]
[406874109,1772257847091,-500.0,0.00049315,120]
[406874110,1772257847100,-439.18778073,0.00049315,120]
[406874111,1772257847109,-151.91925756,0.00049315,120]
[406874112,1772257847117,-529.06022481,0.00049315,120]
[406874113,1772257847126,-196.22348736,0.00049315,120]
[406874114,1772257847135,-182.07710975,0.00049315,30]
[406874115,1772257847144,-201.30937165,0.00049315,15]
[406874116,1772257847153,-210.53425505,0.00049315,120]
[406874117,1772257847162,-179.11291569,0.00049315,2]
[406874118,1772257847171,-229.96488964,0.00049315,120]
[406874119,1772257847180,-212.40131671,0.00049315,120]
[406874120,1772257847191,-500.0,0.00049315,120]
[406874121,1772257847200,-500.0,0.00049315,120]
[406874122,1772257847210,-500.0,0.00049315,120]
[406874123,1772257847219,-500.0,0.00049315,120]
[406874124,1772257847228,-500.0,0.00049315,120]
[406874125,1772257847238,-500.0,0.00049315,120]
[406874126,1772257847247,-409.38276756,0.00049315,120]
[406874127,1772257847257,-171.27815648,0.00049315,120]
[406874128,1772257847266,-159.03785444,0.00049315,120]
[406874129,1772257847275,-301.75832067,0.00049315,120]
[406874130,1772257847285,-206.84022116,0.00049315,120]
[406874131,1772257847294,-500.0,0.00049315,120]
[406874132,1772257847304,-152.78164197,0.00049315,120]
[406874133,1772257847313,-625.28167756,0.00049315,120]
[406874134,1772257847324,-500.0,0.00049315,120]
[406874135,1772257847337,-579.24276313,0.00049315,120]
[406874136,1772257847346,-258.54068305,0.00049315,120]
[406874137,1772257847355,-500.0,0.00049315,120]
[406874138,1772257847364,-282.83419226,0.00049315,120]
[406874139,1772257847373,-500.0,0.00049315,120]